bitfinex/quotes_BTCUSD_20220226
["timestamp","ask_amount","ask_price","bid_price","bid_amount"]
[1645906820923,0.06403831,39306.0,39303.0,0.76312478]
[1645906821923,0.063662,39306.0,39303.0,0.76312478]
[1645906822322,0.06403831,39306.0,39303.0,0.76312478]
[1645906823127,0.063662,39306.0,39303.0,0.76312478]
[1645906823330,0.06403943,39306.0,39303.0,0.76312478]
[1645906824401,0.063662,39306.0,39303.0,0.76312478]
[1645906824597,0.06403992,39306.0,39303.0,0.76312478]
[1645906825498,0.063662,39306.0,39303.0,0.76312478]
[1645906825699,0.06403992,39306.0,39303.0,0.76312478]
[1645906825900,0.00037792,39306.0,39304.0,0.20853787]
[1645906826102,0.00037792,39306.0,39305.0,0.379563]
[1645906826305,0.00037792,39306.0,39305.0,0.679563]
[1645906826703,0.00991994,39307.0,39305.0,0.679563]
[1645906826903,0.00991994,39307.0,39305.0,0.3]
[1645906827102,0.01029777,39307.0,39304.0,0.3]
[1645906827501,0.01029777,39307.0,39303.0,0.76312478]
[1645906827703,0.01029777,39307.0,39304.0,0.379563]
[1645906827927,0.00991994,39307.0,39305.0,0.20869829]
[1645906828127,0.00991994,39307.0,39306.0,0.379563]
[1645906828333,0.01029772,39307.0,39306.0,0.379563]
[1645906829129,0.00991994,39307.0,39306.0,0.379563]
[1645906830130,0.00991994,39307.0,39306.0,0.679563]
[1645906844128,0.00991994,39307.0,39306.0,0.379563]
[1645906845431,0.00991994,39307.0,39306.0,0.57323142]
[1645906846231,0.00991994,39307.0,39306.0,0.57277902]
[1645906846676,0.00991994,39307.0,39306.0,0.3791106]
[1645906850078,0.00981907,39307.0,39306.0,0.3791106]
[1645906851030,0.00981907,39307.0,39306.0,0.37275041]
[1645906866731,0.00981907,39307.0,39306.0,0.67275041]
[1645906867732,0.00981907,39307.0,39306.0,0.37275041]
[1645906870692,0.00981907,39307.0,39306.0,0.67275041]
[1645906871388,0.00981907,39307.0,39306.0,0.37275041]
[1645906872190,0.00981907,39307.0,39306.0,0.57510914]
[1645906873226,0.00981907,39307.0,39306.0,0.37275041]
[1645906874224,0.00981907,39307.0,39306.0,0.57784246]
[1645906874623,0.00981907,39307.0,39306.0,0.37275041]
[1645906875727,0.00981907,39307.0,39306.0,0.67275041]
[1645906875923,0.00981907,39307.0,39306.0,0.67264689]
[1645906881429,0.00981907,39307.0,39306.0,0.67195647]
[1645906887576,0.00981907,39307.0,39306.0,0.57195647]
[1645906891229,0.00981907,39307.0,39306.0,0.59740647]
[1645906891977,0.00981907,39307.0,39306.0,0.57195647]
[1645906895542,0.00981907,39307.0,39306.0,0.76598406]
[1645906896343,0.00981907,39307.0,39306.0,0.57195647]
[1645906897442,0.00981907,39307.0,39306.0,0.73585451]
[1645906897943,0.00981907,39307.0,39306.0,0.57195647]
[1645906900879,0.00981907,39307.0,39306.0,0.77096302]
[1645906901280,0.00981907,39307.0,39306.0,0.27195647]
[1645906903327,0.00981907,39307.0,39306.0,0.45296751]
[1645906903527,0.00981907,39307.0,39306.0,0.27195647]
[1645906904928,0.00981907,39307.0,39306.0,0.57195647]
[1645906906529,0.00981907,39307.0,39306.0,0.27195647]
[1645906909779,0.00981907,39307.0,39306.0,0.27184973]
[1645906912527,0.00981907,39307.0,39306.0,0.57184973]
[1645906917286,0.00981907,39307.0,39306.0,0.27184973]
[1645906917936,0.38605892,39307.0,39306.0,0.27184973]
[1645906918533,0.38499851,39307.0,39306.0,0.27184973]
[1645906920436,0.03562566,39307.0,39303.0,0.76312478]
[1645906920634,0.026867,39306.0,39304.0,0.37956]
[1645906921033,0.026867,39306.0,39303.0,0.76312478]
[1645906921433,0.37956,39305.0,39303.0,0.76312478]
[1645906922483,0.00113412,39306.0,39303.0,0.76312478]
[1645906922676,0.00013412,39306.0,39303.0,0.76312478]
[1645906922875,0.37956,39306.0,39303.0,0.76312478]
[1645906923076,0.164436,39305.0,39303.0,0.76312478]
[1645906923278,0.37956,39305.0,39303.0,0.76312478]
[1645906923476,0.164436,39305.0,39303.0,0.76312478]
[1645906923676,0.37956,39305.0,39303.0,0.76312478]
[1645906923877,0.00213412,39306.0,39303.0,0.76312478]
[1645906924078,0.37956,39304.0,39303.0,0.76312478]
[1645906924278,0.37956,39305.0,39303.0,0.76312478]
[1645906924477,0.37956,39304.0,39303.0,0.76312478]
[1645906924677,0.37956,39305.0,39303.0,0.76312478]
[1645906925081,0.164436,39304.0,39303.0,0.76312478]
[1645906925279,0.37956,39305.0,39303.0,0.76312478]
[1645906925530,0.38056,39305.0,39303.0,0.76312478]
[1645906925729,0.001,39305.0,39303.0,0.76312478]
[1645906925931,0.37956,39304.0,39303.0,0.76312478]
[1645906926530,0.001,39305.0,39303.0,0.76312478]
[1645906926729,0.06407544,39306.0,39303.0,0.76312478]
[1645906926932,0.37956,39304.0,39303.0,0.76312478]
[1645906927132,0.37956,39305.0,39303.0,0.76312478]
[1645906927531,0.001,39304.0,39303.0,0.76312478]
[1645906928736,0.06407544,39306.0,39303.0,0.76312478]
[1645906928933,0.063663,39306.0,39303.0,0.76312478]
[1645906929177,0.06406226,39306.0,39303.0,0.76312478]
[1645906929572,0.06706226,39306.0,39303.0,0.76312478]
[1645906929974,0.37956,39305.0,39303.0,0.76312478]
[1645906930473,0.06706226,39306.0,39303.0,0.76312478]
[1645906930673,0.06406226,39306.0,39303.0,0.76312478]
[1645906931274,0.063663,39306.0,39303.0,0.76312478]
[1645906931474,0.06706226,39306.0,39303.0,0.76312478]
[1645906932374,0.066663,39306.0,39303.0,0.76312478]
[1645906932777,0.06406314,39306.0,39303.0,0.76312478]
[1645906933428,0.06706314,39306.0,39303.0,0.76312478]
[1645906933628,0.066663,39306.0,39303.0,0.76312478]
[1645906933827,0.06706314,39306.0,39303.0,0.76312478]
[1645906934727,0.06406314,39306.0,39303.0,0.76312478]
[1645906934930,0.063663,39306.0,39303.0,0.76312478]
[1645906935129,0.06406314,39306.0,39303.0,0.76312478]
[1645906935529,0.06706314,39306.0,39303.0,0.76312478]
[1645906935731,0.00340014,39306.0,39303.0,0.76312478]
[1645906936130,0.003,39306.0,39303.0,0.76312478]
[1645906936331,0.00340009,39306.0,39304.0,0.67956]
[1645906936533,0.00340009,39306.0,39305.0,0.68962946]
[1645906936782,0.00040009,39306.0,39305.0,0.68962946]
[1645906937182,0.00875866,39307.0,39305.0,0.68962946]
[1645906937384,0.00875866,39307.0,39305.0,0.38962946]
[1645906937685,0.00915874,39307.0,39305.0,0.38962946]
[1645906938485,0.00875866,39307.0,39305.0,0.38962946]
[1645906938886,0.00875866,39307.0,39306.0,0.67956]
[1645906940835,0.00875866,39307.0,39306.0,0.67948074]
[1645906944378,0.00875866,39307.0,39306.0,0.37948074]
[1645906944779,0.00875866,39307.0,39306.0,0.67948074]
[1645906946177,0.00875866,39307.0,39306.0,0.37948074]
[1645906948230,0.00875866,39307.0,39305.0,0.38962946]
[1645906950030,0.00875866,39307.0,39305.0,0.2108237]
[1645906951677,0.00875866,39307.0,39306.0,0.19399645]
[1645906952479,0.00875866,39307.0,39305.0,0.2108237]
[1645906953482,0.00875866,39307.0,39306.0,0.20879138]
[1645906955431,0.00875866,39307.0,39306.0,0.50879138]
[1645906955632,0.00875866,39307.0,39306.0,0.20879138]
[1645906955832,0.12155927,39317.0,39307.0,0.95]
[1645906956036,0.073798,39319.0,39307.0,0.95]
[1645906956232,0.073798,39319.0,39306.0,0.50879138]
[1645906956435,0.073798,39319.0,39306.0,0.20879138]
[1645906957034,0.19293741,39318.0,39306.0,0.20879138]
[1645906957235,0.01016,39317.0,39306.0,0.20879138]
[1645906957635,0.01016,39318.0,39306.0,0.20879138]
[1645906957837,0.01016,39318.0,39306.0,0.50879138]
[1645906958240,0.01016,39318.0,39306.0,0.20879138]
[1645906958641,0.01016,39318.0,39306.0,0.50879138]
[1645906959037,0.00042142,39314.0,39305.0,0.3252237]
[1645906960091,0.01016,39318.0,39308.0,0.20547792]
[1645906960294,0.00042144,39311.0,39308.0,0.20547792]
[1645906961199,0.073798,39319.0,39308.0,0.20547792]
[1645906961393,0.00042144,39311.0,39308.0,0.20547792]
[1645906961993,0.00042144,39311.0,39305.0,0.3252237]
[1645906962494,0.28628866,39319.0,39305.0,0.3252237]
[1645906962695,0.00042145,39310.0,39305.0,0.3252237]
[1645906962933,0.00042145,39310.0,39306.0,0.19254016]
[1645906963535,0.00042145,39310.0,39305.0,0.3252237]
[1645906963737,0.28628866,39319.0,39305.0,0.3252237]
[1645906963936,0.00042145,39310.0,39306.0,0.3]
[1645906964136,0.00042145,39310.0,39305.0,0.3252237]
[1645906964636,0.00042145,39310.0,39306.0,0.18537222]
[1645906964835,0.37956,39318.0,39306.0,0.18537222]
[1645906965035,0.00042145,39310.0,39306.0,0.18537222]
[1645906967081,0.00042145,39310.0,39305.0,0.3252237]
[1645906967282,0.28628866,39319.0,39305.0,0.3252237]
[1645906967484,0.00015478,39310.0,39305.0,0.3252237]
[1645906968182,0.00015478,39310.0,39305.0,0.50147967]
[1645906968382,0.063644,39315.0,39305.0,0.50147967]
[1645906968786,0.00015478,39310.0,39305.0,0.50147967]
[1645906969582,0.26006,39318.0,39305.0,0.50147967]
[1645906969982,0.00042252,39310.0,39305.0,0.50147967]
[1645906970640,0.00042252,39310.0,39306.0,0.3]
[1645906970839,0.01016,39317.0,39306.0,0.3]
[1645906971039,0.00042252,39310.0,39306.0,0.3]
[1645906971345,0.00042252,39310.0,39305.0,0.50147967]
[1645906972141,0.00967612,39317.0,39306.0,1.2]
[1645906972341,0.00967612,39317.0,39305.0,0.50147967]
[1645906972342,0.00015392,39310.0,39305.0,0.50147967]
[1645906973344,0.063644,39315.0,39305.0,0.50147967]
[1645906973541,0.063644,39315.0,39305.0,0.3252237]
[1645906973742,0.20807674,39317.0,39305.0,0.3252237]
[1645906974044,0.0509,39316.0,39305.0,0.3252237]
[1645906974487,0.0509,39316.0,39308.0,0.15939197]
[1645906974885,0.00040429,39312.0,39305.0,0.3252237]
[1645906975688,0.0509,39316.0,39305.0,0.3252237]
[1645906975886,0.00040429,39312.0,39305.0,0.3252237]
[1645906976887,0.37490195,39312.0,39305.0,0.3252237]
[1645906977087,0.37530624,39312.0,39305.0,0.3252237]
[1645906977489,0.37490195,39311.0,39305.0,0.3252237]
[1645906977930,0.37490195,39311.0,39305.0,0.2108237]
[1645906980135,0.37490195,39310.0,39305.0,0.2108237]
[1645906980335,0.37490195,39311.0,39305.0,0.2108237]
[1645906981135,0.37490195,39310.0,39305.0,0.2108237]
[1645906981338,0.37490195,39310.0,39306.0,0.18668979]
[1645906981682,0.37490195,39310.0,39306.0,0.37956]
[1645906981879,0.37490195,39310.0,39305.0,0.2108237]
[1645906982275,0.37490195,39309.0,39305.0,0.2108237]
[1645906982477,0.37490195,39309.0,39303.0,0.76312478]
[1645906982677,0.37490195,39308.0,39303.0,0.76312478]
[1645906984146,0.00039737,39312.0,39303.0,0.76312478]
[1645906984147,0.37490195,39304.0,39303.0,0.76312478]
[1645906984279,0.45724499,39304.0,39303.0,0.76312478]
[1645906985079,0.52090599,39304.0,39303.0,0.76312478]
[1645906986935,0.494121,39304.0,39303.0,0.76312478]
[1645906993930,0.494121,39304.0,39303.0,0.76300692]
[1645907008641,0.37956,39304.0,39303.0,0.76300692]
[1645907009243,0.164515,39311.0,39303.0,0.76300692]
[1645907009441,0.164515,39311.0,39304.0,0.3]
[1645907009841,0.164515,39311.0,39303.0,1.0630991]
[1645907010243,0.164515,39311.0,39305.0,0.17210754]
[1645907010447,0.164515,39311.0,39303.0,1.3397191]
[1645907010843,0.37956,39315.0,39303.0,1.0397191]
[1645907011040,0.00040082,39312.0,39304.0,0.3]
[1645907011240,0.00040082,39312.0,39303.0,1.0397191]
[1645907011693,0.39093829,39316.0,39305.0,0.21131711]
[1645907011889,0.37956,39315.0,39304.0,0.3]
[1645907012090,0.37956,39310.0,39303.0,0.9942891]
[1645907012291,0.3745244,39311.0,39303.0,0.9942891]
[1645907013090,0.3745244,39311.0,39304.0,0.20373662]
[1645907013291,0.37956,39310.0,39304.0,0.20373662]
[1645907013490,0.37956,39311.0,39304.0,0.20373662]
[1645907014494,0.37956,39311.0,39303.0,0.9942891]
[1645907015294,0.3745244,39312.0,39303.0,0.9942891]
[1645907015564,0.3745244,39312.0,39303.0,1.20465611]
[1645907015760,0.3745244,39312.0,39303.0,0.99419611]
[1645907016161,0.37956,39311.0,39303.0,0.99419611]
[1645907016460,0.3745244,39312.0,39303.0,0.99419611]
[1645907016862,0.37494663,39312.0,39304.0,0.3]
[1645907017060,0.37956,39311.0,39304.0,0.3]
[1645907018662,0.37494663,39312.0,39304.0,0.3]
[1645907018867,0.3745244,39312.0,39304.0,0.3]
[1645907019276,0.37956,39311.0,39304.0,0.3]
[1645907020083,0.37956,39310.0,39304.0,0.3]
[1645907020279,0.37956,39311.0,39304.0,0.3]
[1645907020684,0.37494663,39312.0,39304.0,0.3]
[1645907021283,0.3745244,39312.0,39304.0,0.3]
[1645907021484,0.37494663,39312.0,39304.0,0.3]
[1645907022485,0.37494663,39312.0,39303.0,0.99419611]
[1645907022486,0.3745244,39312.0,39303.0,0.99419611]
[1645907022687,0.3745244,39311.0,39303.0,0.99419611]
[1645907023243,0.37956,39311.0,39303.0,0.99419611]
[1645907023439,0.3745244,39311.0,39303.0,1.20603736]
[1645907023639,0.3745244,39312.0,39303.0,1.20603736]
[1645907023843,0.164515,39311.0,39303.0,0.99419611]
[1645907024040,0.3745244,39311.0,39303.0,0.99419611]
[1645907024241,0.37494663,39312.0,39303.0,0.99419611]
[1645907024440,0.3745244,39311.0,39303.0,0.99419611]
[1645907024641,0.3745244,39311.0,39304.0,0.3]
[1645907025041,0.3745244,39312.0,39304.0,0.3]
[1645907025242,0.37494663,39312.0,39304.0,0.3]
[1645907025848,0.37956,39310.0,39304.0,0.3]
[1645907026044,0.37956,39311.0,39304.0,0.3]
[1645907027291,0.37956,39311.0,39303.0,0.99419611]
[1645907027491,0.7540844,39311.0,39303.0,0.99419611]
[1645907027690,0.7540844,39311.0,39303.0,0.76291393]
[1645907027898,0.4381774,39310.0,39303.0,0.76291393]
[1645907028093,0.164515,39309.0,39303.0,0.76291393]
[1645907028293,0.5390394,39309.0,39303.0,0.76291393]
[1645907030095,0.71159807,39309.0,39303.0,0.76291393]
[1645907030535,0.5390394,39309.0,39303.0,0.76291393]
[1645907030939,0.37956,39307.0,39303.0,0.76291393]
[1645907031138,0.7540844,39307.0,39303.0,0.76291393]
[1645907031336,0.37956,39307.0,39303.0,0.76291393]
[1645907031534,0.92965078,39307.0,39303.0,0.76291393]
[1645907032334,0.55512638,39307.0,39303.0,0.76291393]
[1645907032536,0.7540844,39307.0,39303.0,0.76291393]
[1645907034580,0.164515,39305.0,39303.0,0.76291393]
[1645907036387,0.3745244,39307.0,39303.0,0.76291393]
[1645907036582,0.37956,39306.0,39303.0,0.76291393]
[1645907038532,0.37956,39306.0,39303.0,0.76284165]
[1645907039133,0.37956,39306.0,39303.0,0.76238955]
[1645907041539,0.7540844,39306.0,39303.0,0.76238955]
[1645907041985,0.32112805,39304.0,39303.0,0.76238955]
[1645907042185,0.48564305,39304.0,39303.0,0.76238955]
[1645907042386,0.16128243,39305.0,39303.0,0.76238955]
[1645907042586,0.32105292,39304.0,39303.0,0.76238955]
[1645907042992,0.70061292,39304.0,39303.0,0.76238955]
[1645907043588,0.48556792,39304.0,39303.0,0.76238955]
[1645907043788,0.70061292,39304.0,39303.0,0.76238955]
[1645907043988,0.37956,39304.0,39303.0,0.76238955]
[1645907044791,1.0540844,39304.0,39303.0,0.76238955]
[1645907045093,1.01268269,39304.0,39303.0,0.60906572]
[1645907045291,1.17396512,39304.0,39303.0,0.60906572]
[1645907045539,1.01268269,39304.0,39303.0,0.60906572]
[1645907045938,1.17396512,39304.0,39303.0,0.60906572]
[1645907046743,0.96054288,39304.0,39303.0,0.60906572]
[1645907047138,0.79926045,39304.0,39303.0,0.60906572]
[1645907047340,0.66054288,39304.0,39303.0,0.60906572]
[1645907047538,0.49926045,39304.0,39303.0,0.60906572]
[1645907048340,0.79895838,39304.0,39303.0,0.60906572]
[1645907049182,0.49926045,39304.0,39303.0,0.60906572]
[1645907055146,0.49926045,39304.0,39303.0,0.54815915]
[1645907057191,0.47221192,39304.0,39303.0,0.54815915]
[1645907057787,0.81999253,39304.0,39303.0,0.54815915]
[1645907058186,0.81999253,39304.0,39303.0,0.54770665]
[1645907058588,0.47221146,39304.0,39303.0,0.54770665]
[1645907065195,0.47221146,39304.0,39303.0,0.49293599]
[1645907066894,0.77221146,39304.0,39303.0,0.49293599]
[1645907069349,0.77221146,39304.0,39303.0,0.4852274]
[1645907069549,0.47221146,39304.0,39303.0,0.4852274]
[1645907069750,0.42131146,39304.0,39303.0,0.4852274]
[1645907075443,0.72131146,39304.0,39303.0,0.42540477]
[1645907075838,0.88259389,39304.0,39303.0,0.42540477]
[1645907076040,0.72131146,39304.0,39303.0,0.42540477]
[1645907076238,0.88259389,39304.0,39303.0,0.42540477]
[1645907078340,0.72131146,39304.0,39303.0,0.42540477]
[1645907078740,0.88259389,39304.0,39303.0,0.42540477]
[1645907079897,0.72131146,39304.0,39303.0,0.42540477]
[1645907080094,0.88259389,39304.0,39303.0,0.42540477]
[1645907080297,0.58259389,39304.0,39303.0,0.42540477]
[1645907080702,0.42131146,39304.0,39303.0,0.42540477]
[1645907081097,0.04175146,39304.0,39303.0,0.42540477]
[1645907081796,0.42131146,39304.0,39303.0,0.42540477]
[1645907083753,0.72131146,39304.0,39303.0,0.42540477]
[1645907084757,1.15127092,39304.0,39303.0,0.42540477]
[1645907084954,0.164515,39303.0,39295.0,0.1916]
[1645907085155,0.37468122,39297.0,39293.0,0.1216]
[1645907085354,0.37956,39299.0,39296.0,0.00160684]
[1645907085555,0.37467335,39297.0,39296.0,0.00160684]
[1645907085754,0.04997971,39297.0,39296.0,0.00160684]
[1645907085962,0.42953971,39297.0,39296.0,0.00160684]
[1645907086157,0.48043971,39297.0,39296.0,0.00160684]
[1645907086354,0.10087971,39297.0,39290.0,0.01016]
[1645907086557,0.04997971,39296.0,39295.0,0.0004017]
[1645907086796,0.48043971,39296.0,39295.0,0.0004017]
[1645907087197,0.43046,39296.0,39295.0,0.0004017]
[1645907087396,0.43046,39296.0,39290.0,0.01016]
[1645907087597,0.0509,39296.0,39290.0,0.01016]
[1645907087796,0.0509,39296.0,39294.0,0.0004017]
[1645907088600,0.0509,39296.0,39290.0,0.01016]
[1645907088798,0.0509,39296.0,39293.0,0.00040101]
[1645907089897,0.0509,39296.0,39290.0,0.01016]
[1645907090096,0.0509,39296.0,39293.0,0.00040101]
[1645907092043,0.37956,39301.0,39293.0,0.00040101]
[1645907092244,0.3,39302.0,39290.0,0.01016]
[1645907092444,0.37956,39301.0,39293.0,0.00040106]
[1645907093250,0.3,39302.0,39293.0,0.00040106]
[1645907093451,0.3,39302.0,39290.0,0.01016]
[1645907093452,0.37956,39300.0,39290.0,0.01016]
[1645907093647,0.3,39302.0,39290.0,0.01016]
[1645907093850,0.0509,39301.0,39290.0,0.01016]
[1645907094992,0.37956,39300.0,39294.0,0.00040078]
[1645907095591,0.0509,39301.0,39294.0,0.00040078]
[1645907095792,0.0509,39301.0,39290.0,0.01016]
[1645907095992,0.0509,39301.0,39296.0,0.00041321]
[1645907096194,0.37956,39300.0,39296.0,0.00041321]
[1645907096593,0.37956,39300.0,39296.0,0.00030754]
[1645907096795,0.3,39302.0,39296.0,0.00030754]
[1645907096996,0.37956,39301.0,39290.0,0.01016]
[1645907097197,0.3,39302.0,39290.0,0.01016]
[1645907097495,0.47628243,39304.0,39290.0,0.01016]
[1645907097696,0.52628243,39304.0,39290.0,0.01016]
[1645907098145,0.18345308,39303.0,39290.0,0.00516]
[1645907098547,0.52628243,39304.0,39290.0,0.00516]
[1645907098950,0.365,39304.0,39290.0,0.00516]
[1645907099247,0.315,39304.0,39290.0,0.00516]
[1645907099647,0.315,39304.0,39295.0,0.00042213]
[1645907099846,0.015,39304.0,39295.0,0.00042213]
[1645907100747,0.015,39304.0,39290.0,0.03061]
[1645907100947,0.37956,39303.0,39298.0,0.00042212]
[1645907101795,0.37956,39303.0,39291.0,0.32545]
[1645907101999,0.02516,39304.0,39298.0,0.00042212]
[1645907102197,0.37956,39303.0,39298.0,0.00042212]
[1645907103000,0.37956,39303.0,39291.0,0.32545]
[1645907103201,0.015,39304.0,39298.0,0.00042212]
[1645907103401,0.37956,39303.0,39298.0,0.00042212]
[1645907104207,0.37956,39303.0,39291.0,0.32545]
[1645907104403,0.015,39304.0,39298.0,0.00042212]
[1645907104602,0.37956,39303.0,39298.0,0.00042212]
[1645907105545,0.37956,39303.0,39291.0,0.32545]
[1645907105748,0.38956,39303.0,39298.0,0.00042212]
[1645907106750,0.01,39303.0,39291.0,0.32545]
[1645907106947,0.37956,39302.0,39298.0,0.00042212]
[1645907107847,0.01,39303.0,39291.0,0.32545]
[1645907108050,0.37956,39302.0,39298.0,0.00042212]
[1645907108649,0.063669,39301.0,39298.0,0.00042212]
[1645907108848,0.164515,39300.0,39298.0,0.00042212]
[1645907109047,0.164515,39300.0,39291.0,0.02545]
[1645907109304,0.164515,39300.0,39298.0,0.00042212]
[1645907109305,0.37956,39300.0,39298.0,0.00042212]
[1645907110196,0.37956,39300.0,39290.0,0.00516]
[1645907110197,0.50691075,39300.0,39290.0,0.00516]
[1645907110392,0.50691075,39300.0,39297.0,0.00042212]
[1645907111393,0.50691075,39300.0,39290.0,0.00516]
[1645907111592,0.063673,39297.0,39290.0,0.00516]
[1645907111796,0.063673,39297.0,39291.0,0.00168875]
[1645907112595,0.063673,39297.0,39290.0,0.00516]
[1645907112793,0.063673,39297.0,39292.0,0.00042215]
[1645907113242,0.048673,39297.0,39292.0,0.00042215]
[1645907113844,0.048673,39297.0,39290.0,0.00516]
[1645907114044,0.37956,39296.0,39293.0,0.00042215]
[1645907114649,0.164515,39295.0,39293.0,0.00042215]
[1645907114844,0.37956,39296.0,39293.0,0.00042215]
[1645907115044,0.048673,39297.0,39290.0,0.00516]
[1645907115249,0.048673,39297.0,39292.0,0.00042215]
[1645907116245,0.048673,39297.0,39290.0,0.00516]
[1645907116446,0.048673,39297.0,39293.0,0.00042215]
[1645907116698,0.37956,39296.0,39293.0,0.00042215]
[1645907117397,0.37956,39296.0,39290.0,0.00516]
[1645907117696,0.37956,39296.0,39293.0,0.00042215]
[1645907118096,0.37956,39297.0,39293.0,0.00042215]
[1645907118696,0.2499,39298.0,39290.0,0.00516]
[1645907118899,0.2499,39298.0,39293.0,0.00042215]
[1645907119998,0.2499,39298.0,39294.0,0.00042214]
[1645907120846,0.37956,39297.0,39294.0,0.00042214]
[1645907121047,0.2499,39298.0,39290.0,0.00516]
[1645907121246,0.2499,39298.0,39294.0,0.00042214]
[1645907121446,0.37956,39297.0,39294.0,0.00042214]
[1645907121646,0.2499,39298.0,39294.0,0.00042214]
[1645907122246,0.37956,39297.0,39290.0,0.00516]
[1645907122446,0.2499,39298.0,39294.0,0.00042214]
[1645907122645,0.37956,39297.0,39294.0,0.00042214]
[1645907122847,0.2499,39298.0,39294.0,0.00042214]
[1645907123249,0.37956,39297.0,39294.0,0.00042214]
[1645907123454,0.2499,39298.0,39290.0,0.00516]
[1645907123649,0.37956,39297.0,39294.0,0.00042214]
[1645907124601,0.37956,39297.0,39290.0,0.00516]
[1645907124798,0.2499,39298.0,39294.0,0.00042214]
[1645907124999,0.015,39299.0,39294.0,0.00042214]
[1645907125199,0.37956,39298.0,39294.0,0.00042214]
[1645907125700,0.015,39299.0,39294.0,0.00042214]
[1645907125901,0.015,39299.0,39290.0,0.00516]
[1645907126100,0.015,39299.0,39297.0,0.23018079]
[1645907128548,0.015,39299.0,39298.0,0.3]
[1645907128748,0.015,39299.0,39298.0,0.75651]
[1645907128948,0.015,39299.0,39298.0,0.37695]
[1645907129149,0.015,39299.0,39298.0,0.75651]
[1645907129547,0.015,39299.0,39298.0,0.37695]
[1645907129947,0.015,39299.0,39298.0,0.75651]
[1645907130749,0.015,39299.0,39298.0,0.37695]
[1645907130948,0.015,39299.0,39298.0,0.75651]
[1645907131347,0.03482716,39300.0,39298.0,0.75651]
[1645907131547,0.01,39303.0,39298.0,0.75651]
[1645907131548,0.01,39303.0,39300.0,1.2]
[1645907131799,0.01,39303.0,39301.0,0.3]
[1645907132402,0.01,39303.0,39302.0,0.20649448]
[1645907132596,0.01,39303.0,39302.0,0.50649448]
[1645907132997,0.01,39303.0,39302.0,0.3]
[1645907133597,0.00989953,39303.0,39299.0,0.3]
[1645907134000,0.00989953,39303.0,39300.0,0.18040811]
[1645907134198,0.00989953,39303.0,39301.0,0.3]
[1645907134598,0.00989953,39303.0,39300.0,0.18040811]
[1645907135298,0.00989953,39303.0,39301.0,0.67956]
[1645907135547,0.00989953,39303.0,39300.0,0.18040811]
[1645907135745,0.00989953,39303.0,39301.0,0.3]
[1645907135945,0.00989953,39303.0,39300.0,0.18040811]
[1645907136145,0.00989953,39303.0,39301.0,0.3]
[1645907136946,0.00989953,39303.0,39301.0,0.29851749]
[1645907137746,0.00989953,39303.0,39299.0,0.3]
[1645907138545,0.00989953,39303.0,39300.0,0.1631938]
[1645907138746,0.00989953,39303.0,39301.0,0.3]
[1645907140797,0.00989953,39303.0,39300.0,0.1631938]
[1645907141401,0.00989953,39303.0,39301.0,0.3]
[1645907149303,0.00989953,39303.0,39300.0,0.1631938]
[1645907150102,0.00989953,39303.0,39299.0,0.3]
[1645907150304,0.00989953,39303.0,39299.0,0.35]
[1645907151152,0.00989953,39303.0,39299.0,0.52210908]
[1645907152153,0.00989953,39303.0,39299.0,0.35]
[1645907153159,0.00989953,39303.0,39300.0,0.17989876]
[1645907154206,0.00989953,39303.0,39300.0,0.37956]
[1645907154408,0.00989953,39303.0,39299.0,0.35]
[1645907154607,0.00989953,39303.0,39300.0,0.37956]
[1645907154809,0.00989953,39303.0,39301.0,0.3]
[1645907155408,0.00989953,39303.0,39299.0,0.35]
[1645907155814,0.00989953,39303.0,39300.0,0.37956]
[1645907156010,0.00989953,39303.0,39298.0,0.16522212]
[1645907156011,0.00989953,39303.0,39301.0,0.3]
[1645907156210,0.00989953,39303.0,39300.0,0.37956]
[1645907156411,0.00989953,39303.0,39301.0,0.3]
[1645907157010,0.00989953,39303.0,39302.0,0.17999414]
[1645907157210,0.00989953,39303.0,39302.0,0.47999414]
[1645907159850,0.063644,39317.0,39302.0,0.47999414]
[1645907159851,2e-06,39309.0,39305.0,0.40925859]
[1645907160057,2e-06,39309.0,39308.0,1.25606]
[1645907160251,2e-06,39309.0,39308.0,1.33241]
[1645907160450,2e-06,39309.0,39308.0,2.19474802]
[1645907160648,2e-06,39309.0,39308.0,2.20490802]
[1645907160852,0.0011,39321.0,39316.0,0.80195]
[1645907161055,0.0011,39321.0,39319.0,0.37956]
[1645907161255,0.01016,39329.0,39321.0,0.37956]
[1645907161454,0.2259352,39333.0,39323.0,0.37956]
[1645907161694,0.0284352,39333.0,39323.0,0.67956]
[1645907162095,0.0284352,39333.0,39322.0,0.26229402]
[1645907162294,0.00041096,39325.0,39322.0,0.26229402]
[1645907162495,0.00041096,39325.0,39323.0,0.37956]
[1645907162695,0.00041096,39325.0,39323.0,0.67956]
[1645907163297,0.0284352,39333.0,39323.0,0.67956]
[1645907163598,0.00041096,39325.0,39323.0,0.3]
[1645907163796,0.00041096,39325.0,39323.0,0.67956]
[1645907164197,0.0016436,39331.0,39324.0,2.35606]
[1645907164398,0.0284352,39333.0,39325.0,0.3]
[1645907164798,0.0016436,39331.0,39325.0,0.3]
[1645907164998,0.0016436,39331.0,39326.0,0.37956]
[1645907165447,0.0016436,39331.0,39324.0,0.37956]
[1645907165647,0.0284352,39333.0,39326.0,0.37956]
[1645907165846,0.0284352,39333.0,39322.0,0.31319402]
[1645907165847,0.0284352,39333.0,39327.0,0.3]
[1645907166049,0.0284352,39333.0,39324.0,0.37956]
[1645907166252,0.0284352,39333.0,39322.0,0.33864402]
[1645907166253,0.0284352,39333.0,39326.0,0.37956]
[1645907166449,0.0284352,39333.0,39323.0,0.3]
[1645907167052,0.00039719,39330.0,39322.0,0.26229402]
[1645907167852,0.37956,39329.0,39320.0,0.01016]
[1645907168154,0.37956,39332.0,39318.0,0.1671]
[1645907168352,0.0003972,39328.0,39318.0,0.4671]
[1645907168549,0.0003972,39328.0,39318.0,0.1671]
[1645907168755,0.0003972,39328.0,39318.0,0.4671]
[1645907168949,0.0003972,39328.0,39318.0,0.6532414]
[1645907169211,0.313522,39329.0,39318.0,0.4671]
[1645907169414,0.00039861,39327.0,39318.0,0.4671]
[1645907170414,0.313522,39329.0,39318.0,0.4671]
[1645907170614,0.00039861,39327.0,39318.0,0.4671]
[1645907171216,0.24529861,39329.0,39318.0,0.62943372]
[1645907171616,0.24529861,39329.0,39318.0,0.4671]
[1645907173044,0.24529861,39329.0,39319.0,0.20195068]